[Event "*** SCC Grand Prix: Titled Tuesday Blitz"]
[Site "Chess.com"]
[Date "2020.09.29"]
[Round "3"]
[White "pedromartinez91"]
[Black "jefferyx"]
[Result "0-1"]
[WhiteElo "2452"]
[BlackElo "2942"]
[TimeControl "180+1"]
[EndTime "10:25:10 PDT"]
[Termination "jefferyx won by resignation"]

1. d4 {[%clk 0:03:00.9]} 1... Nf6 {[%clk 0:02:58.7]} 2. Bg5 {[%clk 0:03:00.6]}
2... c5 {[%clk 0:02:58.4]} 3. Bxf6 {[%clk 0:02:59.9]} 3... gxf6 {[%clk
0:02:58.4]} 4. d5 {[%clk 0:03:00.4]} 4... f5 {[%clk 0:02:59]} 5. e3 {[%clk
0:02:50.9]} 5... Qb6 {[%clk 0:02:59]} 6. Qc1 {[%clk 0:02:48.5]} 6... Bg7 {[%clk
0:02:55.6]} 7. c3 {[%clk 0:02:48.3]} 7... d6 {[%clk 0:02:55.9]} 8. Nh3 {[%clk
0:02:45]} 8... Nd7 {[%clk 0:02:54.8]} 9. Nd2 {[%clk 0:02:44.1]} 9... Nf6 {[%clk
0:02:54.7]} 10. Nf4 {[%clk 0:02:38.5]} 10... e5 {[%clk 0:02:44.6]} 11. dxe6
{[%clk 0:02:34.9]} 11... fxe6 {[%clk 0:02:45.5]} 12. a4 {[%clk 0:02:35.1]} 12...
Bd7 {[%clk 0:02:43.2]} 13. Bb5 {[%clk 0:02:29.7]} 13... d5 {[%clk 0:02:25.5]}
14. Bxd7+ {[%clk 0:02:06.2]} 14... Nxd7 {[%clk 0:02:26.4]} 15. O-O {[%clk
0:01:52.8]} 15... O-O-O {[%clk 0:02:26.1]} 16. a5 {[%clk 0:01:52]} 16... Qc6
{[%clk 0:02:26.2]} 17. c4 {[%clk 0:01:25.8]} 17... d4 {[%clk 0:02:26.1]} 18. Nf3
{[%clk 0:01:25.5]} 18... Rhg8 {[%clk 0:02:22.7]} 19. Ng5 {[%clk 0:01:00.3]}
19... Bh6 {[%clk 0:02:06.6]} 20. Ngxe6 {[%clk 0:00:41]} 20... Rxg2+ {[%clk
0:02:06.2]} 21. Nxg2 {[%clk 0:00:40.1]} 21... Rg8 {[%clk 0:02:06.6]} 22. e4
{[%clk 0:00:04.1]} 22... Bxc1 {[%clk 0:02:06]} 0-1

[Event "*** SCC Grand Prix: Titled Tuesday Blitz"]
[Site "Chess.com"]
[Date "2020.09.29"]
[Round "3"]
[White "davigator"]
[Black "WinstonSilvakov"]
[Result "1-0"]
[WhiteElo "2354"]
[BlackElo "2130"]
[TimeControl "180+1"]
[EndTime "10:25:14 PDT"]
[Termination "davigator won by resignation"]

1. e4 {[%clk 0:03:00.9]} 1... Nf6 {[%clk 0:03:00.8]} 2. e5 {[%clk 0:02:55.4]}
2... Nd5 {[%clk 0:03:00.7]} 3. d4 {[%clk 0:02:54.9]} 3... d6 {[%clk 0:03:01]} 4.
c4 {[%clk 0:02:54.9]} 4... Nb6 {[%clk 0:03:01]} 5. f4 {[%clk 0:02:55.4]} 5...
dxe5 {[%clk 0:03:01.5]} 6. fxe5 {[%clk 0:02:56.3]} 6... c5 {[%clk 0:03:02.2]} 7.
dxc5 {[%clk 0:02:53.2]} 7... Qxd1+ {[%clk 0:03:01]} 8. Kxd1 {[%clk 0:02:53.4]}
8... N6d7 {[%clk 0:03:01.9]} 9. e6 {[%clk 0:02:53.6]} 9... fxe6 {[%clk
0:03:00.1]} 10. Be3 {[%clk 0:02:52]} 10... g6 {[%clk 0:02:55.2]} 11. Nd2 {[%clk
0:02:44.8]} 11... Bg7 {[%clk 0:02:54.7]} 12. Rb1 {[%clk 0:02:44.1]} 12... Na6
{[%clk 0:02:48.2]} 13. b4 {[%clk 0:02:43.5]} 13... O-O {[%clk 0:02:47.3]} 14.
Ngf3 {[%clk 0:02:42.4]} 14... e5 {[%clk 0:02:46.5]} 15. Ng5 {[%clk 0:02:39.2]}
15... Nf6 {[%clk 0:02:45.8]} 16. h3 {[%clk 0:02:34.8]} 16... Bf5 {[%clk
0:02:45.7]} 17. Rb3 {[%clk 0:02:33.4]} 17... Rad8 {[%clk 0:02:43]} 18. g4 {[%clk
0:02:33.3]} 18... Be4 {[%clk 0:02:42.6]} 19. Rh2 {[%clk 0:02:27]} 19... h6
{[%clk 0:02:41.6]} 20. Nxe4 {[%clk 0:02:26.1]} 20... Nxe4 {[%clk 0:02:41.6]} 21.
Bd3 {[%clk 0:02:23.3]} 21... Nf6 {[%clk 0:02:19.5]} 22. Bxg6 {[%clk 0:02:21]}
22... Rd7 {[%clk 0:02:19.2]} 23. Ke2 {[%clk 0:02:19.8]} 23... Rfd8 {[%clk
0:02:15.5]} 24. Bf5 {[%clk 0:02:19.2]} 24... e6 {[%clk 0:02:10.6]} 25. Bxe6+
{[%clk 0:02:18.7]} 25... Kf8 {[%clk 0:02:10.4]} 26. Bxd7 {[%clk 0:02:17.7]}
26... Rxd7 {[%clk 0:02:11.3]} 27. Rg2 {[%clk 0:02:16.2]} 27... Nc7 {[%clk
0:02:08.8]} 28. h4 {[%clk 0:02:13.7]} 28... Ne6 {[%clk 0:02:07.7]} 29. g5 {[%clk
0:02:13.7]} 29... hxg5 {[%clk 0:02:07.6]} 30. hxg5 {[%clk 0:02:13.3]} 30... Nh5
{[%clk 0:02:07.8]} 31. Kf2 {[%clk 0:02:05.6]} 31... Nhf4 {[%clk 0:02:06.4]} 32.
Rg4 {[%clk 0:02:02.6]} 32... Rf7 {[%clk 0:02:03.4]} 33. Ke1 {[%clk 0:01:56]}
33... Nd4 {[%clk 0:01:53.8]} 34. Bxd4 {[%clk 0:01:54.3]} 34... exd4 {[%clk
0:01:53.6]} 35. Rf3 {[%clk 0:01:51.3]} 35... Be5 {[%clk 0:01:49.6]} 36. Kd1
{[%clk 0:01:48.4]} 36... Kg7 {[%clk 0:01:49.2]} 37. Ne4 {[%clk 0:01:48.2]} 37...
Kg6 {[%clk 0:01:45.4]} 38. Rg1 {[%clk 0:01:46.2]} 38... Kf5 {[%clk 0:01:43.3]}
39. g6 {[%clk 0:01:44.8]} 39... Rg7 {[%clk 0:01:38.9]} 40. Nd6+ {[%clk
0:01:44.6]} 40... Bxd6 {[%clk 0:01:38.4]} 41. cxd6 {[%clk 0:01:44.6]} 41... Ke4
{[%clk 0:01:33.9]} 42. Rxf4+ {[%clk 0:01:44.5]} 42... Kxf4 {[%clk 0:01:33.9]}
43. d7 {[%clk 0:01:45.4]} 1-0

[Event "*** SCC Grand Prix: Titled Tuesday Blitz"]
[Site "Chess.com"]
[Date "2020.09.29"]
[Round "3"]
[White "Trovita84"]
[Black "PavelChernomordik"]
[Result "0-1"]
[WhiteElo "1974"]
[BlackElo "2310"]
[TimeControl "180+1"]
[EndTime "10:25:15 PDT"]
[Termination "PavelChernomordik won by resignation"]

1. e4 {[%clk 0:03:00.9]} 1... g6 {[%clk 0:02:58.9]} 2. d4 {[%clk 0:02:57]} 2...
Bg7 {[%clk 0:02:59.2]} 3. Nf3 {[%clk 0:02:54.7]} 3... d6 {[%clk 0:02:58.6]} 4.
c3 {[%clk 0:02:51.6]} 4... Nf6 {[%clk 0:02:54.7]} 5. Bd3 {[%clk 0:02:51]} 5...
c5 {[%clk 0:02:53.7]} 6. Na3 {[%clk 0:02:50.9]} 6... O-O {[%clk 0:02:50.2]} 7.
Nc2 {[%clk 0:02:50.4]} 7... Nc6 {[%clk 0:02:48.1]} 8. O-O {[%clk 0:02:32.7]}
8... Qc7 {[%clk 0:02:43.8]} 9. Bf4 {[%clk 0:02:29.5]} 9... e5 {[%clk 0:02:39.7]}
10. dxe5 {[%clk 0:02:26.1]} 10... dxe5 {[%clk 0:02:38.9]} 11. Bg3 {[%clk
0:02:25]} 11... Rd8 {[%clk 0:02:31.6]} 12. Qe2 {[%clk 0:02:17.9]} 12... Nh5
{[%clk 0:02:31.3]} 13. Bh4 {[%clk 0:02:15.2]} 13... Nf4 {[%clk 0:02:29.6]} 14.
Bxd8 {[%clk 0:02:01.5]} 14... Nxe2+ {[%clk 0:02:27.7]} 15. Bxe2 {[%clk
0:02:02.4]} 15... Nxd8 {[%clk 0:02:24.7]} 16. Rad1 {[%clk 0:02:01.7]} 16... Ne6
{[%clk 0:02:21.7]} 17. Ne3 {[%clk 0:02:01.1]} 17... Nf4 {[%clk 0:02:20.9]} 18.
Bc4 {[%clk 0:02:00.9]} 18... Be6 {[%clk 0:02:15.7]} 19. Bxe6 {[%clk 0:02:00.7]}
19... fxe6 {[%clk 0:02:13]} 20. g3 {[%clk 0:02:00.6]} 20... Nh5 {[%clk
0:02:03.1]} 21. Kg2 {[%clk 0:01:58.3]} 21... Qc6 {[%clk 0:01:56.9]} 22. Nd2
{[%clk 0:01:52.5]} 22... Nf6 {[%clk 0:01:52.9]} 23. f3 {[%clk 0:01:51.7]} 23...
Rd8 {[%clk 0:01:48.7]} 24. Ndc4 {[%clk 0:01:51.3]} 24... Rxd1 {[%clk 0:01:41.7]}
25. Rxd1 {[%clk 0:01:52.2]} 25... Nd7 {[%clk 0:01:39.2]} 26. Rd6 {[%clk
0:01:48.9]} 26... Qc7 {[%clk 0:01:34.8]} 27. Rxe6 {[%clk 0:01:48.8]} 27... Nf8
{[%clk 0:01:22.2]} 28. Rd6 {[%clk 0:01:38.5]} 28... b5 {[%clk 0:01:21.2]} 29.
Nd5 {[%clk 0:01:34.5]} 29... Qb8 {[%clk 0:01:20.4]} 30. Ne7+ {[%clk 0:01:26.2]}
30... Kh8 {[%clk 0:01:18.3]} 31. Nc6 {[%clk 0:01:24.6]} 31... Qc7 {[%clk
0:01:16.1]} 0-1

[Event "*** SCC Grand Prix: Titled Tuesday Blitz"]
[Site "Chess.com"]
[Date "2020.09.29"]
[Round "3"]
[White "THE_PLAYER6"]
[Black "katchesskat"]
[Result "0-1"]
[WhiteElo "2470"]
[BlackElo "2273"]
[TimeControl "180+1"]
[EndTime "10:25:16 PDT"]
[Termination "katchesskat won by checkmate"]

1. a3 {[%clk 0:03:00.9]} 1... c5 {[%clk 0:02:58.9]} 2. c3 {[%clk 0:03:00.4]}
2... e6 {[%clk 0:02:58.5]} 3. d4 {[%clk 0:03:00.8]} 3... b6 {[%clk 0:02:57.6]}
4. g3 {[%clk 0:02:59.6]} 4... Bb7 {[%clk 0:02:57.7]} 5. Nf3 {[%clk 0:03:00.3]}
5... Nf6 {[%clk 0:02:57.6]} 6. Bg2 {[%clk 0:03:00.9]} 6... Qc7 {[%clk 0:02:58]}
7. O-O {[%clk 0:03:01.5]} 7... Be7 {[%clk 0:02:57.8]} 8. Bf4 {[%clk 0:03:02]}
8... d6 {[%clk 0:02:57.5]} 9. Nbd2 {[%clk 0:03:01.7]} 9... h6 {[%clk 0:02:56.9]}
10. Nc4 {[%clk 0:03:00.9]} 10... g5 {[%clk 0:02:54.6]} 11. Bc1 {[%clk 0:02:37]}
11... cxd4 {[%clk 0:02:52.5]} 12. Qxd4 {[%clk 0:02:36.4]} 12... e5 {[%clk
0:02:51.8]} 13. Ncxe5 {[%clk 0:02:33.3]} 13... dxe5 {[%clk 0:02:51.2]} 14. Nxe5
{[%clk 0:02:34.1]} 14... Bxg2 {[%clk 0:02:49.1]} 15. Kxg2 {[%clk 0:02:35]} 15...
Nc6 {[%clk 0:02:48.6]} 16. Nxc6 {[%clk 0:02:26.7]} 16... Qxc6+ {[%clk
0:02:49.5]} 17. f3 {[%clk 0:02:26.9]} 17... Rd8 {[%clk 0:02:48.4]} 18. Qf2
{[%clk 0:02:22.4]} 18... Bc5 {[%clk 0:02:39]} 19. Qe1 {[%clk 0:02:14.8]} 19...
O-O {[%clk 0:02:34.1]} 20. b4 {[%clk 0:02:10.2]} 20... Bd6 {[%clk 0:02:27]} 21.
h4 {[%clk 0:01:50.2]} 21... Nh7 {[%clk 0:02:25.1]} 22. hxg5 {[%clk 0:01:49]}
22... hxg5 {[%clk 0:02:18]} 23. Rh1 {[%clk 0:01:47.6]} 23... Rfe8 {[%clk
0:02:14.9]} 24. Rxh7 {[%clk 0:01:41.4]} 24... Kxh7 {[%clk 0:02:13.7]} 25. Bxg5
{[%clk 0:01:42.1]} 25... Be7 {[%clk 0:02:05.7]} 26. Bf4 {[%clk 0:01:34.9]} 26...
Kg7 {[%clk 0:01:59.1]} 27. Rc1 {[%clk 0:01:32.6]} 27... Rh8 {[%clk 0:01:58.3]}
28. Qf2 {[%clk 0:01:29.3]} 28... Bf6 {[%clk 0:01:57.6]} 29. c4 {[%clk
0:01:27.2]} 29... Bd4 {[%clk 0:01:46.3]} 30. e3 {[%clk 0:01:26.7]} 30... Bf6
{[%clk 0:01:46]} 31. g4 {[%clk 0:01:24.9]} 31... Qe6 {[%clk 0:01:39.6]} 32. c5
{[%clk 0:01:22.5]} 32... bxc5 {[%clk 0:01:38.6]} 33. Rxc5 {[%clk 0:01:19.9]}
33... Rd5 {[%clk 0:01:38.5]} 34. Rc2 {[%clk 0:01:13.4]} 34... Rd1 {[%clk
0:01:33.1]} 35. g5 {[%clk 0:01:09.9]} 35... Qh3# {[%clk 0:01:31]} 0-1

[Event "*** SCC Grand Prix: Titled Tuesday Blitz"]
[Site "Chess.com"]
[Date "2020.09.29"]
[Round "3"]
[White "FMalexhdez"]
[Black "DariaVoit"]
[Result "1-0"]
[WhiteElo "2239"]
[BlackElo "2463"]
[TimeControl "180+1"]
[EndTime "10:25:16 PDT"]
[Termination "FMalexhdez won by resignation"]

1. e4 {[%clk 0:03:00.9]} 1... Nf6 {[%clk 0:02:59.5]} 2. e5 {[%clk 0:03:00.4]}
2... Nd5 {[%clk 0:03:00]} 3. d4 {[%clk 0:03:00.9]} 3... d6 {[%clk 0:03:00.1]} 4.
Nf3 {[%clk 0:03:01]} 4... dxe5 {[%clk 0:02:53.3]} 5. Nxe5 {[%clk 0:02:59.7]}
5... c6 {[%clk 0:02:52.4]} 6. c4 {[%clk 0:02:45.8]} 6... Nf6 {[%clk 0:02:49.4]}
7. Nc3 {[%clk 0:02:41.7]} 7... Bf5 {[%clk 0:02:48.6]} 8. Be2 {[%clk 0:02:23.9]}
8... e6 {[%clk 0:02:48.3]} 9. Be3 {[%clk 0:02:22.2]} 9... Nbd7 {[%clk
0:02:47.4]} 10. Qb3 {[%clk 0:02:19.8]} 10... Qb6 {[%clk 0:02:42.6]} 11. Nxd7
{[%clk 0:02:00.1]} 11... Nxd7 {[%clk 0:02:41]} 12. d5 {[%clk 0:01:58.1]} 12...
Bc5 {[%clk 0:02:25.2]} 13. dxc6 {[%clk 0:01:46.5]} 13... bxc6 {[%clk 0:02:16.2]}
14. Na4 {[%clk 0:01:33.7]} 14... Qxb3 {[%clk 0:01:58.6]} 15. axb3 {[%clk
0:01:33.1]} 15... Bxe3 {[%clk 0:01:52]} 16. fxe3 {[%clk 0:01:33]} 16... Rb8
{[%clk 0:01:43.9]} 17. Bf3 {[%clk 0:01:29.9]} 17... Rxb3 {[%clk 0:01:23.6]} 18.
Bxc6 {[%clk 0:01:22.8]} 18... Rxe3+ {[%clk 0:01:17.6]} 19. Kf2 {[%clk
0:01:14.8]} 19... Rd3 {[%clk 0:01:16]} 20. Nc5 {[%clk 0:01:01.3]} 20... e5
{[%clk 0:01:04]} 21. Nxd3 {[%clk 0:00:59.6]} 21... Bxd3 {[%clk 0:01:04.9]} 22.
Rxa7 {[%clk 0:00:56.4]} 1-0

[Event "*** SCC Grand Prix: Titled Tuesday Blitz"]
[Site "Chess.com"]
[Date "2020.09.29"]
[Round "3"]
[White "Omk124"]
[Black "DonPreuss"]
[Result "1-0"]
[WhiteElo "2439"]
[BlackElo "2240"]
[TimeControl "180+1"]
[EndTime "10:25:20 PDT"]
[Termination "Omk124 won by resignation"]

1. e4 {[%clk 0:03:00.9]} 1... e5 {[%clk 0:02:58.6]} 2. Nf3 {[%clk 0:03:00.8]}
2... d5 {[%clk 0:02:58.3]} 3. exd5 {[%clk 0:02:59.9]} 3... e4 {[%clk 0:02:57.9]}
4. Qe2 {[%clk 0:02:59.6]} 4... Nf6 {[%clk 0:02:57.3]} 5. d3 {[%clk 0:02:59.4]}
5... Qxd5 {[%clk 0:02:56.7]} 6. Nc3 {[%clk 0:02:58.9]} 6... Be7 {[%clk
0:02:53.7]} 7. Nxd5 {[%clk 0:02:58.8]} 7... Nxd5 {[%clk 0:02:44.7]} 8. Qxe4
{[%clk 0:02:58.5]} 8... Be6 {[%clk 0:02:43.3]} 9. Nd4 {[%clk 0:02:57.2]} 9...
Nf6 {[%clk 0:02:39.1]} 10. Qxb7 {[%clk 0:02:56.4]} 10... Bd5 {[%clk 0:02:39]}
11. Qb5+ {[%clk 0:02:56.2]} 11... c6 {[%clk 0:02:37.4]} 12. Qa4 {[%clk
0:02:55.3]} 12... O-O {[%clk 0:02:37]} 13. c4 {[%clk 0:02:55.6]} 13... Re8
{[%clk 0:02:16.5]} 14. Be3 {[%clk 0:02:55]} 14... Be6 {[%clk 0:01:59.3]} 15.
Nxe6 {[%clk 0:02:54.2]} 15... fxe6 {[%clk 0:01:58.9]} 16. Be2 {[%clk 0:02:55.1]}
16... Nbd7 {[%clk 0:01:52.9]} 17. O-O {[%clk 0:02:54]} 17... Ne5 {[%clk
0:01:50.8]} 18. d4 {[%clk 0:02:52.4]} 18... Ng6 {[%clk 0:01:50.2]} 19. Bf3
{[%clk 0:02:50.7]} 19... Rac8 {[%clk 0:01:48.7]} 20. Bxc6 {[%clk 0:02:42.9]}
20... Rf8 {[%clk 0:01:48.1]} 21. Bd7 {[%clk 0:02:42]} 21... Rb8 {[%clk
0:01:44.3]} 22. Bxe6+ {[%clk 0:02:42.1]} 22... Kh8 {[%clk 0:01:44.5]} 23. b3
{[%clk 0:02:41.4]} 23... Ne4 {[%clk 0:01:38.8]} 24. Qxa7 {[%clk 0:02:40.4]}
24... Nc3 {[%clk 0:01:34.9]} 25. d5 {[%clk 0:02:36.5]} 25... Bd6 {[%clk
0:01:30.6]} 26. Bd4 {[%clk 0:02:34.3]} 26... Ne2+ {[%clk 0:01:29.4]} 27. Kh1
{[%clk 0:02:34.2]} 27... Nxd4 {[%clk 0:00:50.3]} 28. Qxd4 {[%clk 0:02:35.1]}
28... Rf4 {[%clk 0:00:48.9]} 29. Qe3 {[%clk 0:02:33.5]} 29... Rh4 {[%clk
0:00:45.4]} 30. g3 {[%clk 0:02:32.3]} 30... Rh5 {[%clk 0:00:39]} 31. c5 {[%clk
0:02:31]} 31... Be5 {[%clk 0:00:36.7]} 32. Rac1 {[%clk 0:02:29.7]} 32... Rf8
{[%clk 0:00:35.4]} 33. f4 {[%clk 0:02:28.5]} 33... Bf6 {[%clk 0:00:25.4]} 34. d6
{[%clk 0:02:26.2]} 1-0

[Event "*** SCC Grand Prix: Titled Tuesday Blitz"]
[Site "Chess.com"]
[Date "2020.09.29"]
[Round "3"]
[White "Playgood28"]
[Black "isainz"]
[Result "1-0"]
[WhiteElo "2323"]
[BlackElo "2014"]
[TimeControl "180+1"]
[EndTime "10:25:26 PDT"]
[Termination "Playgood28 won by resignation"]

1. d4 {[%clk 0:03:00.9]} 1... Nf6 {[%clk 0:02:59.2]} 2. c4 {[%clk 0:02:58.3]}
2... g6 {[%clk 0:02:59.3]} 3. Nc3 {[%clk 0:02:58]} 3... Bg7 {[%clk 0:02:59.5]}
4. Nf3 {[%clk 0:02:58]} 4... d6 {[%clk 0:02:59.5]} 5. h3 {[%clk 0:02:57]} 5...
O-O {[%clk 0:02:58.6]} 6. Bf4 {[%clk 0:02:57.5]} 6... Nbd7 {[%clk 0:02:56.3]} 7.
e3 {[%clk 0:02:57.2]} 7... Re8 {[%clk 0:02:55.7]} 8. Be2 {[%clk 0:02:57.1]} 8...
Nh5 {[%clk 0:02:41.3]} 9. Bh2 {[%clk 0:02:55.5]} 9... e5 {[%clk 0:02:38]} 10.
dxe5 {[%clk 0:02:46.4]} 10... dxe5 {[%clk 0:02:35.5]} 11. O-O {[%clk 0:02:38.8]}
11... c6 {[%clk 0:02:33.2]} 12. Qd6 {[%clk 0:02:30.5]} 12... Re6 {[%clk
0:02:12.7]} 13. Qd2 {[%clk 0:02:25]} 13... Qc7 {[%clk 0:01:56.5]} 14. Rfd1
{[%clk 0:02:12.8]} 14... Nc5 {[%clk 0:01:50.6]} 15. Nd4 {[%clk 0:01:38.3]} 15...
Rd6 {[%clk 0:01:35.5]} 16. Ndb5 {[%clk 0:01:37.8]} 16... Rxd2 {[%clk 0:01:33.7]}
17. Nxc7 {[%clk 0:01:36.8]} 17... Rxd1+ {[%clk 0:01:33.8]} 18. Rxd1 {[%clk
0:01:35.8]} 18... Rb8 {[%clk 0:01:12.4]} 19. Rd8+ {[%clk 0:01:33.3]} 19... Bf8
{[%clk 0:01:11.6]} 20. Bxe5 {[%clk 0:01:28.5]} 20... f6 {[%clk 0:01:06]} 21. Bd6
{[%clk 0:01:07.2]} 21... Nd7 {[%clk 0:00:55.8]} 22. Ne6 {[%clk 0:01:05.8]} 1-0

[Event "*** SCC Grand Prix: Titled Tuesday Blitz"]
[Site "Chess.com"]
[Date "2020.09.29"]
[Round "3"]
[White "ChelsieMonica"]
[Black "rugbyclub"]
[Result "1-0"]
[WhiteElo "2375"]
[BlackElo "2165"]
[TimeControl "180+1"]
[EndTime "10:25:43 PDT"]
[Termination "ChelsieMonica won by resignation"]

1. e4 {[%clk 0:03:00.9]} 1... e6 {[%clk 0:02:58.4]} 2. d4 {[%clk 0:02:59.1]}
2... d5 {[%clk 0:02:57.3]} 3. exd5 {[%clk 0:03:00]} 3... exd5 {[%clk 0:02:57.3]}
4. Nf3 {[%clk 0:03:00.9]} 4... Nc6 {[%clk 0:02:56.9]} 5. Bd3 {[%clk 0:03:01.8]}
5... Bd6 {[%clk 0:02:56.7]} 6. c3 {[%clk 0:03:02.3]} 6... Nge7 {[%clk
0:02:56.6]} 7. Bg5 {[%clk 0:03:02.1]} 7... f6 {[%clk 0:02:55.8]} 8. Bh4 {[%clk
0:03:00.5]} 8... Bg4 {[%clk 0:02:55.5]} 9. h3 {[%clk 0:03:00.2]} 9... Bf5 {[%clk
0:02:50.7]} 10. Qc2 {[%clk 0:02:58.6]} 10... Qd7 {[%clk 0:02:49]} 11. Nbd2
{[%clk 0:02:58.1]} 11... O-O-O {[%clk 0:02:47.6]} 12. O-O-O {[%clk 0:02:58.2]}
12... Kb8 {[%clk 0:02:46.7]} 13. Rhe1 {[%clk 0:02:56.7]} 13... h5 {[%clk
0:02:44]} 14. Bg3 {[%clk 0:02:49.9]} 14... g5 {[%clk 0:02:35.1]} 15. Bxd6 {[%clk
0:02:47.4]} 15... cxd6 {[%clk 0:02:35]} 16. Bxf5 {[%clk 0:02:43.3]} 16... Nxf5
{[%clk 0:02:33.1]} 17. Qb3 {[%clk 0:02:40.4]} 17... Nce7 {[%clk 0:02:29.8]} 18.
Kb1 {[%clk 0:02:40.1]} 18... g4 {[%clk 0:02:24.9]} 19. Ng1 {[%clk 0:02:39.4]}
19... Rhg8 {[%clk 0:02:21]} 20. hxg4 {[%clk 0:02:37.9]} 20... Rxg4 {[%clk
0:02:16.9]} 21. g3 {[%clk 0:02:37.9]} 21... h4 {[%clk 0:02:16.9]} 22. gxh4
{[%clk 0:02:36.9]} 22... Rxh4 {[%clk 0:02:16.3]} 23. Ndf3 {[%clk 0:02:35.1]}
23... Rg4 {[%clk 0:02:12.7]} 24. Ne2 {[%clk 0:02:26.2]} 24... Re4 {[%clk
0:02:03.7]} 25. Nd2 {[%clk 0:02:13.7]} 25... Rg4 {[%clk 0:01:58.6]} 26. Nc1
{[%clk 0:02:10.3]} 26... Rg2 {[%clk 0:01:51]} 27. Nd3 {[%clk 0:02:08.9]} 27...
Rdg8 {[%clk 0:01:42.7]} 28. Nf4 {[%clk 0:02:07.8]} 28... Rxf2 {[%clk 0:01:42.5]}
29. Nxd5 {[%clk 0:02:05.7]} 29... Rgg2 {[%clk 0:01:41.6]} 30. Kc1 {[%clk
0:02:03.6]} 30... Re2 {[%clk 0:01:03.6]} 31. Rh1 {[%clk 0:01:53]} 31... Rh2
{[%clk 0:00:47.6]} 32. Rhg1 {[%clk 0:01:45.7]} 32... Rhg2 {[%clk 0:00:47]} 33.
Rxg2 {[%clk 0:01:45.2]} 33... Rxg2 {[%clk 0:00:46.5]} 34. Nxf6 {[%clk
0:01:43.9]} 34... Qc6 {[%clk 0:00:41.1]} 35. d5 {[%clk 0:01:40.3]} 35... Qc5
{[%clk 0:00:35.3]} 36. Nd7+ {[%clk 0:01:40.1]} 1-0

[Event "*** SCC Grand Prix: Titled Tuesday Blitz"]
[Site "Chess.com"]
[Date "2020.09.29"]
[Round "3"]
[White "Herracek"]
[Black "swimmerchess"]
[Result "0-1"]
[WhiteElo "2633"]
[BlackElo "2830"]
[TimeControl "180+1"]
[EndTime "10:25:47 PDT"]
[Termination "swimmerchess won by checkmate"]

1. c4 {[%clk 0:03:00.9]} 1... Nf6 {[%clk 0:02:59.7]} 2. Nc3 {[%clk 0:03:00.3]}
2... c5 {[%clk 0:02:59.9]} 3. g3 {[%clk 0:02:59]} 3... d5 {[%clk 0:02:59.9]} 4.
cxd5 {[%clk 0:02:58.6]} 4... Nxd5 {[%clk 0:03:00.8]} 5. Bg2 {[%clk 0:02:59.1]}
5... Nc7 {[%clk 0:03:01.4]} 6. Nf3 {[%clk 0:02:58.2]} 6... Nc6 {[%clk
0:03:01.9]} 7. O-O {[%clk 0:02:58.7]} 7... e5 {[%clk 0:03:02.4]} 8. a3 {[%clk
0:02:58.3]} 8... Rb8 {[%clk 0:03:02]} 9. e3 {[%clk 0:02:55.6]} 9... Be7 {[%clk
0:02:57.6]} 10. Re1 {[%clk 0:02:48.7]} 10... O-O {[%clk 0:02:55.9]} 11. d4
{[%clk 0:02:41.4]} 11... cxd4 {[%clk 0:02:54.6]} 12. exd4 {[%clk 0:02:42.3]}
12... exd4 {[%clk 0:02:55.5]} 13. Ne2 {[%clk 0:02:38.4]} 13... Ne6 {[%clk
0:02:55.1]} 14. Nf4 {[%clk 0:02:27.9]} 14... a5 {[%clk 0:02:29]} 15. Nd3 {[%clk
0:02:18.8]} 15... b6 {[%clk 0:02:22.6]} 16. Bd2 {[%clk 0:02:10]} 16... Bb7
{[%clk 0:02:20.7]} 17. Rc1 {[%clk 0:02:09.6]} 17... Rc8 {[%clk 0:02:20.8]} 18.
b4 {[%clk 0:02:07.6]} 18... axb4 {[%clk 0:02:19.7]} 19. axb4 {[%clk 0:02:08.5]}
19... Na7 {[%clk 0:02:20.2]} 20. Qa4 {[%clk 0:02:05.8]} 20... Ra8 {[%clk
0:02:12.9]} 21. Nf4 {[%clk 0:01:54.1]} 21... Nxf4 {[%clk 0:02:04.8]} 22. Bxf4
{[%clk 0:01:55]} 22... Nc6 {[%clk 0:02:05.3]} 23. Qb5 {[%clk 0:01:54.7]} 23...
Bxb4 {[%clk 0:02:05.3]} 24. Rxc6 {[%clk 0:01:50.1]} 24... Bxe1 {[%clk 0:01:59]}
25. Rxb6 {[%clk 0:01:43.6]} 25... Bxf3 {[%clk 0:01:58.7]} 26. Bxf3 {[%clk
0:01:44.5]} 26... Ra2 {[%clk 0:01:58.1]} 27. Rd6 {[%clk 0:01:41.7]} 27... Bxf2+
{[%clk 0:01:53.7]} 28. Kf1 {[%clk 0:01:41]} 28... Qe7 {[%clk 0:01:53.8]} 29. Be2
{[%clk 0:01:33.3]} 29... Re8 {[%clk 0:01:53.8]} 30. Be5 {[%clk 0:01:13.8]} 30...
Be3 {[%clk 0:01:29.2]} 31. Rd7 {[%clk 0:01:07.9]} 31... Qe6 {[%clk 0:01:16.5]}
32. Bc4 {[%clk 0:01:07.8]} 32... Qh3+ {[%clk 0:01:16.2]} 33. Ke1 {[%clk
0:01:08]} 33... Ra1+ {[%clk 0:01:16.1]} 34. Ke2 {[%clk 0:01:08]} 34... Qg2+
{[%clk 0:01:07.3]} 35. Kd3 {[%clk 0:01:06.4]} 35... Rd1# {[%clk 0:01:07.8]} 0-1

[Event "*** SCC Grand Prix: Titled Tuesday Blitz"]
[Site "Chess.com"]
[Date "2020.09.29"]
[Round "3"]
[White "Morshynska"]
[Black "SharapovEvgeny"]
[Result "0-1"]
[WhiteElo "2210"]
[BlackElo "2476"]
[TimeControl "180+1"]
[EndTime "10:25:50 PDT"]
[Termination "SharapovEvgeny won on time"]

1. Nf3 {[%clk 0:03:00.4]} 1... c5 {[%clk 0:02:59.6]} 2. g3 {[%clk 0:02:54.8]}
2... Nc6 {[%clk 0:02:58.5]} 3. d4 {[%clk 0:02:53.7]} 3... cxd4 {[%clk
0:02:57.7]} 4. Nxd4 {[%clk 0:02:54.3]} 4... Nf6 {[%clk 0:02:55.6]} 5. Bg2 {[%clk
0:02:50.3]} 5... g6 {[%clk 0:02:52.5]} 6. O-O {[%clk 0:02:48.3]} 6... Bg7 {[%clk
0:02:52]} 7. e4 {[%clk 0:02:45.5]} 7... O-O {[%clk 0:02:48.5]} 8. c4 {[%clk
0:02:30.2]} 8... Nxd4 {[%clk 0:02:46.8]} 9. Qxd4 {[%clk 0:02:31.1]} 9... d6
{[%clk 0:02:46.8]} 10. Nc3 {[%clk 0:02:26.6]} 10... Be6 {[%clk 0:02:43.4]} 11.
Qd3 {[%clk 0:02:14]} 11... Rc8 {[%clk 0:02:41.8]} 12. b3 {[%clk 0:01:36.8]}
12... d5 {[%clk 0:02:22.4]} 13. e5 {[%clk 0:00:53.4]} 13... Nd7 {[%clk 0:02:16]}
14. Nxd5 {[%clk 0:00:27]} 14... Nxe5 {[%clk 0:02:11.7]} 15. Qe2 {[%clk
0:00:24.1]} 15... Nf3+ {[%clk 0:02:01.5]} 16. Bxf3 {[%clk 0:00:22.1]} 16... Bxa1
{[%clk 0:02:01.1]} 17. Ba3 {[%clk 0:00:19.8]} 17... Bxd5 {[%clk 0:02:00.5]} 18.
Bxd5 {[%clk 0:00:18.2]} 18... Bf6 {[%clk 0:01:58.7]} 19. Bxb7 {[%clk 0:00:15.8]}
19... Rb8 {[%clk 0:01:56.2]} 20. Bd5 {[%clk 0:00:12.9]} 20... Qa5 {[%clk
0:01:54.1]} 21. Bxe7 {[%clk 0:00:05.7]} 21... Rbe8 {[%clk 0:01:34.4]} 0-1